bitfinex-derivatives/quotes_ETHF0:USTF0_20251013
["timestamp","ask_amount","ask_price","bid_price","bid_amount"]
[1760327124827,0.00192093,4146.2,4146.1,0.3868]
[1760327125429,0.00192093,4146.2,4146.1,4.1224]
[1760327129146,0.43356,4147.8,4147.7,0.2608]
[1760327129437,3.19607206,4147.6,4147.3,0.3662]
[1760327129636,3.19607206,4147.6,4147.0,3.6249]
[1760327129830,8.47665576,4147.9,4147.0,3.3641]
[1760327130035,8.47665576,4147.9,4147.0,0.15892624]
[1760327130036,3.18119209,4147.5,4147.0,0.15892624]
[1760327130336,0.43362,4147.1,4147.0,0.00262624]
[1760327130641,3.61481209,4147.1,4147.0,0.00262624]
[1760327131138,6.82261209,4147.1,4147.0,0.00262624]
[1760327132526,6.82261209,4147.1,4147.0,0.78592624]
[1760327132730,6.82261209,4147.1,4147.0,0.52512624]
[1760327133439,6.82261209,4147.1,4147.0,0.15892624]
[1760327133737,6.82261209,4147.1,4147.0,0.00262624]
[1760327133930,6.82261209,4147.1,4147.0,0.15892624]
[1760327134125,6.82261209,4147.1,4147.0,0.52512624]
[1760327135941,0.43362,4147.2,4147.0,1.05292624]
[1760327136137,0.43362,4147.2,4147.1,0.894]
[1760327136440,0.43362,4147.2,4147.1,0.3662]
[1760327136737,0.43362,4147.2,4147.1,0.627]
[1760327137134,0.43362,4147.2,4147.1,0.3662]
[1760327137343,3.54207619,4147.2,4147.0,0.15892624]
[1760327137535,3.54207619,4147.2,4147.0,0.52512624]
[1760327138330,3.2078,4147.1,4147.0,0.00262624]
[1760327138536,3.2078,4147.1,4146.1,0.3662]
[1760327138537,0.43373,4146.2,4146.1,0.3662]
[1760327139544,0.43373,4146.2,4146.1,0.36868766]
[1760327142047,3.62481087,4146.2,4146.1,0.00248766]
[1760327144537,4.25924761,4146.2,4146.1,0.00248766]
[1760327148242,3.82551761,4146.2,4146.1,0.88568766]
[1760327148441,0.43372,4146.2,4146.1,0.88568766]
[1760327149742,0.43369,4146.5,4146.1,0.88568766]
[1760327149951,3.2078,4146.6,4146.5,1.0294]
[1760327150449,6.27673036,4146.6,4146.5,1.0294]
[1760327150650,3.2078,4146.6,4146.5,1.0294]
[1760327150850,2.3620831,4147.8,4146.5,1.0294]
[1760327150851,0.43362,4147.2,4147.1,0.2628]
[1760327151050,3.64141,4147.3,4147.1,0.5143]
[1760327151246,3.64141,4147.3,4147.2,0.6317]
[1760327155760,3.64141,4147.3,4147.2,0.3689]
[1760327156751,0.43361,4147.3,4147.2,0.6152]
[1760327156952,6.93254392,4147.3,4146.6,0.6219]
[1760327157154,0.43362,4147.1,4147.0,0.1538]
[1760327157359,0.43362,4147.1,4147.0,1.016]
[1760327157656,3.2078,4147.3,4147.1,0.3756]
[1760327157958,3.6414,4147.3,4147.2,0.4866]
[1760327158258,3.6414,4147.3,4147.2,0.8622]
[1760327158752,0.43362,4147.1,4147.0,0.5294]
[1760327159351,0.43362,4147.1,4147.0,1.016]
[1760327159953,0.43362,4147.1,4147.0,0.5294]
[1760327160152,0.43367,4146.7,4146.6,0.6219]
[1760327160352,0.43367,4146.7,4146.6,0.8622]
[1760327160552,0.43365,4146.9,4146.7,0.3756]
[1760327160750,0.43365,4146.9,4146.8,0.8622]
[1760327161158,0.43365,4146.9,4146.8,0.6219]
[1760327161856,0.43365,4146.9,4146.8,0.3756]
[1760327162259,0.43365,4146.9,4146.8,0.8622]
[1760327162560,3.2078,4147.3,4147.2,0.8622]
[1760327163758,3.64141,4147.3,4147.2,0.8622]
[1760327164062,0.43356,4147.8,4147.7,0.8622]
[1760327164257,0.43356,4147.8,4147.7,4.07]
[1760327164760,0.43356,4147.8,4147.7,0.8622]
[1760327166064,0.43356,4147.8,4147.7,0.3756]
[1760327167364,0.43356,4147.8,4147.7,0.8622]
[1760327167751,0.43356,4147.8,4147.7,0.3756]
[1760327168362,0.43356,4147.8,4147.7,0.6219]
[1760327168564,0.43356,4147.8,4147.7,0.8622]
[1760327168762,0.43356,4147.8,4147.7,0.6219]
[1760327169558,0.43356,4147.8,4147.5,0.1538]
[1760327169559,0.43357,4147.6,4147.5,0.1538]
[1760327169863,0.43362,4147.1,4147.0,0.7757]
[1760327170064,0.43362,4147.1,4147.0,0.5294]
[1760327170564,0.43362,4147.1,4147.0,0.7757]
[1760327170765,0.43362,4147.1,4147.0,1.016]
[1760327172360,0.43362,4147.1,4147.0,0.5294]
[1760327173162,0.43362,4147.1,4147.0,0.7757]
[1760327173556,0.43362,4147.1,4147.0,1.016]
[1760327173756,0.43361,4147.3,4147.2,0.2463]
[1760327173957,0.43361,4147.3,4147.2,0.6219]
[1760327174157,3.59060889,4147.3,4147.2,0.6219]
[1760327174365,3.59060889,4147.3,4147.2,0.3756]
[1760327174960,3.59060889,4147.3,4147.2,0.6219]
[1760327175660,3.59060889,4147.3,4147.2,0.8622]
[1760327176156,3.64135,4147.8,4147.7,0.8622]
[1760327176359,0.43355,4147.8,4147.7,0.8622]
[1760327178972,3.2078,4148.6,4147.8,0.8622]
[1760327178973,0.43349,4148.4,4147.8,0.8622]
[1760327179270,0.43562017,4147.9,4147.8,0.6219]
[1760327181055,1.07432857,4147.9,4147.8,0.6219]
[1760327181569,0.00208017,4147.9,4147.8,0.8622]
[1760327183464,0.43343,4149.0,4148.9,0.5084]
[1760327183761,0.43343,4149.0,4148.5,0.1441]
[1760327183762,3.61385773,4149.1,4149.0,1.0047]
[1760327183968,4.25235403,4149.1,4149.0,1.0047]
[1760327184369,3.61566129,4149.1,4149.0,1.0047]
[1760327187365,3.61566129,4149.1,4149.0,0.755]
[1760327187566,3.61566129,4149.1,4149.0,0.4963]
[1760327187767,0.103,4148.6,4148.3,3.2078]
[1760327187969,0.0795,4148.6,4148.5,0.1441]
[1760327188174,0.51297,4148.6,4148.5,0.6525]
[1760327188771,3.2078,4148.7,4148.5,0.6525]
[1760327188972,3.64126,4148.7,4148.5,0.6525]
[1760327189273,0.0795,4148.1,4148.0,0.4028]
[1760327189467,0.159,4148.1,4148.0,0.4028]
[1760327189775,0.159,4148.1,4148.0,0.6525]
[1760327190076,0.513,4148.3,4148.2,0.5084]
[1760327190272,0.5925,4148.3,4148.2,0.8606]
[1760327190474,0.159,4147.9,4147.8,0.3522]
[1760327190672,0.59254,4147.9,4147.8,0.6109]
[1760327191068,0.43361,4147.3,4147.1,0.3522]
[1760327191270,0.159,4147.2,4147.1,0.6109]
[1760327191678,0.159,4147.2,4147.1,0.8606]
[1760327191883,0.6359,4147.1,4146.5,3.2078]
[1760327192177,0.92572,4146.2,4146.1,0.26118766]
[1760327192366,1.30642,4146.2,4146.1,0.00248766]
[1760327193075,4.50087694,4146.2,4146.1,0.00248766]
[1760327194771,3.68645694,4146.2,4146.1,0.86308766]
[1760327194972,0.8727,4146.2,4146.1,0.35468766]
[1760327195171,3.9627339,4146.2,4146.1,0.00248766]
[1760327196376,3.64148,4146.6,4146.1,0.51088766]
[1760327196678,0.43369,4146.5,4146.1,0.00248766]
[1760327196875,0.8727,4146.3,4146.2,0.6109]
[1760327197479,0.492,4146.3,4146.2,0.6109]
[1760327197687,0.8727,4146.3,4146.2,0.3522]
[1760327197882,0.2552,4146.3,4146.2,0.8606]
[1760327198182,0.9257,4146.4,4146.3,0.6109]
[1760327198391,1.3064,4146.4,4146.3,0.3522]
[1760327198689,0.492,4146.2,4146.1,0.00248766]
[1760327198887,0.492,4146.2,4146.1,0.35468766]
[1760327199088,0.492,4146.2,4146.1,0.61338766]
[1760327199289,0.2552,4146.2,4146.1,0.86308766]
[1760327199491,0.43371,4146.5,4146.2,0.3522]
[1760327199786,0.92571,4146.5,4146.4,0.2587]
[1760327199982,0.92571,4146.5,4146.4,0.6109]
[1760327200178,0.92571,4146.5,4146.1,0.00248766]
[1760327200179,0.492,4146.2,4146.1,0.00248766]
[1760327200388,0.8727,4146.2,4146.1,0.00248766]
[1760327200684,4.01242374,4146.2,4146.1,0.00248766]
[1760327203586,0.492,4145.4,4145.3,0.3522]
[1760327203793,0.2552,4144.9,4144.8,0.8606]
[1760327204286,0.2552,4144.9,4144.7,3.2078]
[1760327204287,0.3759,4144.8,4144.7,3.2078]
[1760327204487,0.8727,4144.8,4144.7,3.2078]
[1760327204689,0.49978214,4144.8,4144.7,4.05477565]
[1760327205586,0.00298214,4144.8,4144.7,4.05477565]
[1760327208992,0.00298214,4144.8,4144.7,0.37517565]
[1760327208993,0.87568214,4144.8,4144.7,0.37517565]
[1760327209199,0.87568214,4144.8,4144.7,0.00287565]
[1760327209493,7.22590218,4144.8,4144.7,0.00287565]
[1760327210197,10.84792,4144.4,4143.2,0.3723]
[1760327210490,0.43404,4143.1,4143.0,0.5263]
[1760327210894,3.53615625,4143.1,4143.0,0.5263]
[1760327211095,3.53615625,4143.1,4143.0,0.52841383]
[1760327211487,3.10211625,4143.1,4143.0,0.52841383]
[1760327211694,3.2078,4143.1,4143.0,0.54441383]
[1760327214494,3.2078,4143.1,4143.0,0.78641383]
[1760327214799,3.2078,4143.1,4143.0,1.03911383]
[1760327215606,3.2078,4143.6,4143.5,0.7739]
[1760327216493,3.2078,4143.6,4143.5,1.0266]
[1760327216695,3.2078,4144.2,4143.5,0.6383]
[1760327217002,3.62003287,4144.1,4144.0,0.5319]
[1760327217496,3.62003287,4144.1,4144.0,0.1436]
[1760327217897,3.62003287,4144.1,4144.0,0.5319]
[1760327218706,0.43401,4143.6,4143.5,0.1436]
[1760327219004,0.43404,4143.3,4143.2,0.3883]
[1760327219508,3.57378454,4143.3,4143.2,0.3883]
[1760327219800,3.13974454,4143.3,4143.2,0.3883]
[1760327220099,3.13974454,4143.5,4143.0,0.15611383]
[1760327220299,3.13974454,4143.5,4143.1,0.3883]
[1760327220502,3.2078,4143.6,4143.0,0.15611383]
[1760327220804,0.43403,4143.2,4143.0,0.00211383]
[1760327221004,0.43403,4143.2,4143.0,0.39041383]
[1760327221194,3.12409368,4143.1,4143.0,0.77601383]
[1760327221392,3.2078,4143.6,4143.0,0.53401383]
[1760327221598,5.2718915,4143.7,4143.0,0.53401383]
[1760327221599,3.2078,4143.1,4143.0,0.00211383]
[1760327222006,6.31522484,4143.1,4143.0,0.00211383]
[1760327222997,3.64179,4143.6,4143.5,0.1436]
[1760327223200,4.27606068,4143.6,4143.5,0.5319]
[1760327223400,6.99457993,4143.6,4143.5,0.7739]
[1760327223704,6.36030925,4143.6,4143.5,0.5319]
[1760327224001,6.99462629,4143.6,4143.0,0.53401383]
[1760327224201,6.36030925,4143.6,4143.0,0.14571383]
[1760327224510,3.64184,4143.1,4143.0,0.53401383]
[1760327224807,3.2078,4143.1,4143.0,0.53401383]
[1760327225008,6.31488587,4143.1,4143.0,0.53401383]
[1760327225707,6.31488587,4143.1,4142.0,3.78555]
[1760327225708,1.08524,4142.6,4142.1,0.3883]
[1760327226005,5.2718915,4143.3,4142.1,0.3883]
[1760327226006,0.43413,4142.2,4142.1,0.3883]
[1760327226408,3.57714226,4142.2,4142.1,0.3883]
[1760327226611,3.57714226,4142.2,4142.1,0.00201861]
[1760327228008,3.57714226,4142.2,4142.1,0.39031861]
[1760327228208,4.21139702,4142.2,4142.1,0.39031861]
[1760327228510,4.21139702,4142.2,4142.1,0.00201861]
[1760327229105,4.21139702,4142.2,4142.1,0.39031861]
[1760327230313,3.57714226,4142.2,4142.1,0.39031861]
[1760327230503,4.21182491,4142.2,4142.1,0.39031861]
[1760327232511,7.41962491,4142.2,4142.1,0.39031861]
[1760327234013,7.41962491,4142.2,4142.1,0.63231861]
[1760327234708,3.84248265,4142.2,4142.1,0.88501861]
[1760327236111,7.02714915,4142.2,4142.1,0.39031861]
[1760327237611,7.02714915,4142.2,4142.1,0.00201861]
[1760327238512,7.02714915,4142.2,4142.1,0.39031861]
[1760327239210,8.30533225,4142.2,4142.1,0.39031861]
[1760327240112,8.30533225,4142.2,4142.1,0.63231861]
[1760327240515,7.02714915,4142.2,4142.1,0.63231861]
[1760327241018,7.02714915,4142.2,4142.1,0.00201861]
[1760327242013,0.4342,4141.6,4141.5,0.1436]
[1760327242321,7.44496325,4141.6,4141.5,0.1436]
[1760327242710,0.43423,4141.3,4141.2,0.3727]
[1760327242914,0.63724165,4141.3,4141.2,0.3727]
[1760327243220,0.63724165,4141.3,4141.2,0.37466153]
[1760327243418,0.63724165,4141.3,4141.2,0.60866153]
[1760327244213,1.4933744,4141.3,4141.2,0.60866153]
[1760327245510,1.4933744,4141.3,4141.2,0.37466153]
[1760327245915,0.63724165,4141.3,4141.2,0.37466153]
[1760327246322,1.49372146,4141.3,4141.2,0.37466153]
[1760327247121,3.73160836,4141.3,4141.2,0.00196153]
[1760327248323,4.58852526,4141.3,4141.2,0.00196153]
[1760327248622,3.73160836,4141.3,4141.2,0.00196153]
[1760327248815,4.58822243,4141.3,4141.2,0.00196153]
[1760327249613,4.58822243,4141.3,4141.2,0.37466153]
[1760327249819,4.58822243,4141.3,4141.2,0.60866153]
[1760327249820,3.73160836,4141.3,4141.2,0.60866153]
[1760327250124,3.73160836,4141.3,4141.2,0.37466153]
[1760327253120,3.73160836,4141.3,4141.2,0.60866153]
[1760327253315,0.63724165,4141.3,4141.2,0.85656153]
[1760327254322,0.6405117,4141.3,4141.2,0.85656153]
[1760327255224,0.002559,4141.3,4141.2,0.85656153]
[1760327259925,0.64109626,4141.3,4141.2,0.37466153]
[1760327260322,0.4343,4140.7,4140.6,0.3727]
[1760327260521,3.6421,4140.7,4140.5,0.1436]
[1760327260718,0.63834097,4140.6,4140.5,0.1436]
[1760327260922,0.63834097,4140.6,4140.5,0.5163]
[1760327261137,3.82952753,4140.6,4140.5,0.5163]
[1760327261326,3.82952753,4140.6,4140.5,0.51932742]
[1760327261730,3.82947183,4140.6,4140.5,0.00302742]
[1760327262030,3.82947183,4140.6,4140.5,0.52712742]
[1760327262426,3.82947183,4140.6,4140.5,0.00302742]
[1760327262930,3.82947183,4140.6,4140.5,0.15442742]
[1760327263127,3.82947183,4140.6,4140.5,0.76112742]
[1760327263330,3.82947183,4140.6,4140.5,1.00902742]
[1760327264024,0.436799,4141.3,4141.1,0.3727]
[1760327264333,3.7378881,4141.2,4141.1,0.3727]
[1760327264530,0.43425,4141.1,4141.0,0.1514]
[1760327264730,1.0720115,4141.1,4141.0,0.5241]
[1760327265033,4.21140169,4141.1,4141.0,0.5241]
[1760327265333,3.77715169,4141.1,4141.0,1.006]
[1760327265533,3.13939019,4141.1,4141.0,1.006]
[1760327265933,3.1978658,4141.2,4141.1,0.3727]
[1760327266132,0.436799,4141.3,4141.1,0.3727]
[1760327266431,0.436799,4141.3,4141.0,0.1514]
[1760327266432,0.002559,4141.3,4141.2,0.234]
[1760327266625,0.002559,4141.3,4141.2,0.8546]
[1760327274131,3.2078,4141.9,4141.8,0.8343]
[1760327275036,3.21033847,4141.9,4141.8,0.8343]
[1760327279634,0.00253847,4141.9,4141.8,0.8343]
[1760327281132,0.00253847,4141.9,4141.8,0.5916]
[1760327281638,0.00253847,4141.9,4141.8,0.8343]
[1760327283138,0.00253847,4141.9,4141.8,1.2685]
[1760327283331,0.00253847,4141.9,4141.8,0.8343]
[1760327284131,0.00253847,4141.9,4141.8,0.3568]
[1760327284330,3.14642423,4141.9,4141.8,0.3568]
[1760327284536,0.4342,4141.8,4141.3,0.3568]
[1760327284742,0.43424,4141.4,4141.3,0.3568]
[1760327285143,3.53765416,4141.4,4141.3,0.3568]
[1760327285830,0.43427,4141.1,4141.0,0.5082]
[1760327286242,3.53105499,4141.1,4141.0,0.5082]
[1760327286443,0.43432,4140.6,4140.5,0.15442742]
[1760327286631,3.64212,4140.6,4140.5,0.51122742]
[1760327286940,6.7417972,4140.6,4140.5,0.15442742]
[1760327287838,6.7417972,4140.6,4140.5,0.00302742]
[1760327288145,7.37823668,4140.6,4140.5,0.00302742]
[1760327288444,7.37823668,4140.6,4140.5,2.742e-05]
[1760327288640,0.43438,4140.1,4140.0,0.1436]
[1760327288842,3.2078,4140.1,4139.6,0.3568]
[1760327289141,6.31714735,4140.1,4139.6,0.3568]
[1760327289538,0.43441,4139.9,4139.7,0.3568]
[1760327289845,3.64218,4140.1,4140.0,0.1382]
[1760327290145,6.84345341,4140.1,4140.0,0.1382]
[1760327290644,0.4344,4139.9,4139.8,0.3568]
[1760327291036,3.55856521,4139.9,4139.8,0.3568]
[1760327293936,3.12416521,4139.9,4139.8,0.5916]
[1760327294141,3.2078,4140.1,4140.0,0.1382]
[1760327294444,3.2078,4140.1,4140.0,0.9725]
[1760327298549,3.2078,4140.1,4140.0,0.495]
[1760327298550,6.33309024,4140.1,4140.0,0.495]
[1760327302142,6.33309024,4140.1,4140.0,0.9746]
[1760327302347,3.2078,4140.1,4140.0,0.9746]
[1760327303947,3.64205,4141.1,4141.0,0.7293]
[1760327304144,3.2078,4141.1,4141.0,0.5014]
[1760327304344,6.31692587,4141.1,4141.0,0.5014]
[1760327306750,6.31692587,4141.1,4141.0,0.7293]
[1760327308545,6.31692587,4141.1,4141.0,0.9741]
[1760327308845,3.2078,4141.1,4141.0,0.9741]
[1760327309850,3.2078,4141.6,4141.5,0.9741]
[1760327313349,0.00253847,4141.9,4141.5,0.1371]
[1760327313554,0.00253847,4141.9,4141.8,4.0448]
[1760327314053,3.2078,4142.7,4142.6,0.837]
[1760327314359,3.2078,4142.7,4142.6,2.66658108]
[1760327314953,3.20956988,4142.7,4142.6,2.66907538]
[1760327315860,0.00176988,4142.7,4142.6,2.66907538]
[1760327316256,3.2078,4143.8,4143.5,0.1371]
[1760327316557,3.2078,4143.8,4143.7,2.66658108]
[1760327317247,3.21075004,4143.8,4143.7,2.66658108]
[1760327318155,3.2078,4144.4,4143.7,2.66658108]
[1760327318352,3.2078,4144.4,4144.3,2.66658108]
[1760327319252,3.21091131,4144.4,4144.3,2.66658108]
[1760327319658,3.21091131,4144.4,4144.3,0.837]
[1760327320954,0.00311131,4144.4,4144.3,0.837]
[1760327322967,3.2078,4145.5,4145.2,0.837]
[1760327322968,0.43382,4145.3,4145.2,0.837]
[1760327323262,0.4338,4145.4,4145.3,0.837]
[1760327323556,3.2078,4145.5,4145.4,0.3643]
[1760327323763,3.2078,4145.5,4145.4,0.837]
[1760327324054,3.21001709,4145.5,4145.4,0.837]
[1760327324259,0.00221709,4145.5,4145.4,4.0448]
[1760327330162,0.43600709,4145.5,4145.4,0.837]
[1760327330453,3.64380709,4145.5,4145.4,0.3643]
[1760327330652,0.43383,4145.1,4145.0,0.1371]
[1760327330860,0.43383,4145.1,4145.0,0.3754]
[1760327331058,3.4984343,4145.1,4145.0,0.7236]
[1760327331265,3.4984343,4145.1,4145.0,0.4853]
[1760327331764,3.4984343,4145.1,4145.0,0.7236]
[1760327333565,3.4984343,4145.1,4145.0,0.4853]
[1760327335366,4.12947473,4145.1,4145.0,0.4853]
[1760327338071,4.12947473,4145.1,4145.0,0.1371]
[1760327338374,0.43391,4144.4,4144.3,0.3375]
[1760327338567,3.64171,4144.4,4144.3,0.3375]
[1760327338771,6.84160495,4144.4,4144.3,0.3375]
[1760327340177,7.47451553,4144.4,4144.3,0.3375]
[1760327340372,3.2078,4144.4,4144.3,0.8079]
[1760327341275,0.63380115,4144.4,4144.3,0.8079]
[1760327342774,3.84160115,4144.4,4144.3,0.3375]
[1760327343175,6.92684496,4144.4,4144.3,0.3375]
[1760327343375,6.92684496,4144.4,4144.0,0.1371]
[1760327343376,7.78345903,4144.4,4144.0,0.4746]
[1760327343577,0.43393,4144.2,4144.1,0.3375]
[1760327343771,1.06773115,4144.2,4144.1,0.3375]
[1760327343979,4.16489347,4144.2,4144.1,0.3375]
[1760327344278,5.02150754,4144.2,4144.1,0.3375]
[1760327344682,4.16489347,4144.2,4144.1,0.3375]
[1760327345176,0.63380115,4144.2,4144.1,0.8079]
[1760327345775,0.63380115,4144.2,4144.1,0.3375]
[1760327346372,3.76752773,4144.2,4144.1,0.3375]
[1760327346678,5.05191577,4144.2,4144.1,0.3375]
[1760327346876,3.76752773,4144.2,4144.1,0.3375]
[1760327347279,3.76752773,4144.2,4144.1,0.8079]
[1760327347582,0.63380115,4144.2,4144.1,0.8079]
[1760327349881,0.63380115,4144.2,4144.1,0.3375]
[1760327349882,3.80701056,4144.2,4144.1,0.3375]
[1760327350782,0.43404,4143.1,4142.6,0.0024943]
[1760327350982,1.06970782,4143.1,4142.6,0.0024943]
[1760327351279,3.81618001,4143.1,4143.0,0.941]
[1760327351587,0.63566782,4143.1,4143.0,0.941]
[1760327352182,0.63566782,4143.1,4143.0,0.4706]
[1760327352379,0.63566782,4143.1,4143.0,0.7094]
[1760327352688,0.63566782,4143.1,4143.0,0.941]
[1760327353683,3.2078,4143.4,4143.1,0.3375]
[1760327353884,3.2078,4143.4,4143.3,0.4704]
[1760327354082,3.2078,4143.4,4143.3,0.8079]
[1760327355881,3.2078,4144.0,4143.9,0.8079]
[1760327356081,3.84299249,4144.0,4143.9,0.8079]
[1760327356289,0.43399,4143.6,4143.5,0.1331]
[1760327356588,6.36040128,4144.0,4143.5,0.6035]
[1760327356785,0.43399,4143.7,4143.5,0.6035]
[1760327356986,0.43399,4143.7,4143.6,0.8079]
[1760327357187,1.06953772,4143.7,4143.6,0.8079]
[1760327357582,3.2078,4144.0,4143.6,0.8079]
[1760327357781,1.06985589,4143.9,4143.8,0.4704]
[1760327357980,1.06985589,4143.9,4143.8,0.8079]
[1760327358181,1.06985589,4143.9,4143.8,0.3375]
[1760327358388,1.06985589,4143.9,4143.8,0.5763]
[1760327359086,1.06985589,4143.9,4143.8,0.3375]
[1760327359385,0.43399,4143.6,4143.5,0.4706]
[1760327359587,0.43399,4143.6,4143.0,0.1331]
[1760327359588,0.43403,4143.2,4143.0,0.1331]
[1760327359788,0.63588589,4143.1,4143.0,0.4706]
[1760327359989,3.79386677,4143.1,4143.0,0.4706]
[1760327360187,3.79386677,4143.1,4143.0,0.941]
[1760327360389,0.434,4143.5,4143.0,0.6035]
[1760327360586,0.63688633,4143.4,4143.3,0.8079]
[1760327361491,3.64177,4143.8,4143.7,0.2388]
[1760327361791,7.42401083,4143.8,4143.7,0.5763]
[1760327362689,7.42401083,4143.8,4143.7,0.3375]
[1760327365994,7.42401083,4143.8,4143.7,0.5745]
[1760327366291,7.42401083,4143.8,4143.7,0.3375]
[1760327366692,7.42401083,4143.8,4143.7,0.5745]
[1760327367599,3.2078,4143.8,4143.7,0.8027]
[1760327369100,3.2078,4143.8,4143.7,1.23668]
[1760327369295,2.82009504,4143.8,4143.7,1.23668]
[1760327369496,0.43387,4144.8,4144.2,0.8077]
[1760327369497,3.2078,4144.3,4144.2,0.8077]
[1760327370903,6.36537027,4144.3,4144.2,0.3425]
[1760327371090,6.36537027,4144.3,4144.2,0.5795]
[1760327371294,6.36537027,4144.3,4144.2,0.8077]
[1760327371495,6.36537027,4144.3,4144.2,0.3425]
[1760327371905,7.00214835,4144.3,4144.2,0.3425]
[1760327378806,7.00214835,4144.3,4144.2,0.8077]
[1760327379002,3.84457808,4144.3,4144.2,0.8077]
[1760327380406,5.27837959,4144.3,4144.2,0.3425]
[1760327380999,5.27837959,4144.3,4144.2,0.5795]
[1760327381206,8.34989373,4144.3,4144.2,0.3425]
[1760327383105,6.91645327,4144.3,4144.2,0.8077]
[1760327383301,8.34989373,4144.3,4144.2,0.3425]
[1760327383506,0.43395,4144.2,4144.0,0.1438]
[1760327383710,0.43395,4144.2,4144.1,0.3425]
[1760327383911,1.071349,4144.2,4144.1,0.3425]
[1760327384213,4.25410577,4144.2,4144.1,0.3425]
[1760327384404,0.43406,4143.1,4142.6,3.2102943]
[1760327384608,1.86750046,4143.1,4142.6,3.2102943]
[1760327384807,0.4341,4142.7,4142.6,3.4472943]
[1760327385014,2.50467459,4142.7,4142.6,0.0024943]
[1760327385205,5.67952406,4142.7,4142.6,0.0024943]
[1760327385705,4.2460836,4142.7,4142.6,0.0024943]
[1760327386809,4.24497837,4142.7,4142.6,0.0024943]
[1760327388507,0.4342,4141.8,4141.6,0.3356]
[1760327388811,0.4342,4141.8,4141.7,0.7888]
[1760327389615,0.00250774,4141.8,4141.7,0.79183044]
[1760327391516,3.2078,4142.6,4142.5,0.9402]
[1760327392614,3.21019464,4142.6,4142.5,0.9402]
[1760327393617,3.21019464,4142.6,4142.5,1.37432]
[1760327393808,0.00239464,4142.6,4142.5,1.37432]
[1760327394012,3.2078,4143.2,4143.1,0.4451]
[1760327394208,3.2078,4143.2,4143.0,0.56897]
[1760327394209,3.2078,4143.2,4143.0,0.1349]
[1760327394413,8.43136665,4143.1,4142.5,0.7164]
[1760327394619,3.2078,4142.6,4142.5,0.7164]
[1760327395119,3.21002238,4142.6,4142.5,0.7164]
[1760327395717,3.21002238,4142.6,4142.1,0.3538]
[1760327395918,3.64413238,4142.6,4142.5,0.4887]
[1760327396320,3.21002238,4142.6,4142.5,0.4887]
[1760327396817,3.21002238,4142.6,4142.5,0.7181]
[1760327397417,3.21002238,4142.6,4142.5,0.4887]
[1760327397621,0.43412,4142.5,4142.0,0.1332]
[1760327397921,0.43412,4142.5,4142.2,0.2294]
[1760327398122,0.43412,4142.5,4142.0,0.1332]
[1760327398325,0.43412,4142.5,4142.1,0.2294]
[1760327398514,0.43415,4142.3,4142.1,0.3538]
[1760327398716,0.43416,4142.1,4142.0,0.1332]
[1760327398919,3.64196,4142.1,4142.0,0.1332]
[1760327399121,6.7942253,4142.1,4142.0,0.487]
[1760327399516,6.3600653,4142.1,4142.0,0.487]
[1760327400121,0.4342,4141.8,4141.7,0.35683044]
[1760327400419,0.4342,4141.8,4141.7,0.00303044]
[1760327400623,3.55670454,4141.8,4141.7,0.00303044]
[1760327401020,1.08556,4141.6,4141.1,0.3538]
[1760327401216,0.43425,4141.3,4141.1,0.3538]
[1760327401419,0.43425,4141.3,4140.9,3.2078]
[1760327401420,0.43426,4141.2,4140.9,3.2078]
[1760327401621,3.64293505,4141.2,4141.1,0.3538]
[1760327401817,0.43426,4141.2,4141.1,0.3538]
[1760327402017,0.43426,4141.2,4141.1,0.35567222]
[1760327402218,3.54430896,4141.2,4141.1,0.35567222]
[1760327402423,3.11004896,4141.2,4141.1,0.35567222]
[1760327402729,3.54430896,4141.3,4141.1,0.00187222]
[1760327403025,0.43426,4141.3,4141.2,0.3538]
[1760327403523,3.55258588,4141.3,4141.2,0.3538]
[1760327404336,3.2078,4141.4,4141.2,0.7989]
[1760327404630,3.64193,4142.5,4142.2,0.3538]
[1760327404930,3.2078,4142.5,4142.4,0.7989]
[1760327406125,3.2078,4142.5,4142.4,0.3538]
[1760327406328,0.43415,4142.3,4142.1,0.3538]
[1760327406827,3.2078,4142.5,4142.4,0.7989]
[1760327409336,0.00222238,4142.6,4142.5,0.9338]
[1760327410237,3.2078,4143.0,4142.5,0.9338]
[1760327410431,3.2078,4143.0,4142.9,0.7989]
[1760327410625,3.2078,4143.0,4142.5,0.1349]
[1760327410626,0.4341,4142.7,4142.5,0.1349]
[1760327410830,0.4341,4142.7,4142.6,0.3538]
[1760327411232,0.43607614,4142.7,4142.6,0.3538]
[1760327411831,0.43415,4142.2,4142.1,0.3538]
[1760327412036,3.64195,4142.2,4142.0,0.1349]
[1760327412235,6.81691881,4142.2,4142.0,0.1349]
[1760327412733,6.81691881,4142.2,4142.0,0.4887]
[1760327412928,0.4342,4141.9,4141.6,0.3538]
[1760327413127,0.4342,4141.8,4141.6,0.3538]
[1760327413328,3.63851052,4141.8,4141.6,0.3538]
[1760327413530,3.63851052,4141.8,4141.1,3.20967222]
[1760327413739,3.63851052,4141.8,4141.6,0.3538]
[1760327414134,3.63851052,4141.8,4141.1,3.20967222]
[1760327414436,0.43421,4141.7,4141.6,0.3538]
[1760327414631,3.2078,4141.7,4141.6,0.3538]
[1760327415335,3.2078,4142.3,4142.1,0.3538]
[1760327416233,3.2078,4142.3,4142.0,0.1349]
[1760327416428,0.43415,4142.2,4142.0,0.1349]
[1760327416634,0.43415,4142.2,4142.1,0.3538]
[1760327417437,3.2078,4142.3,4142.0,0.1349]
[1760327417632,3.64194,4142.3,4142.0,0.1349]
[1760327418137,0.43415,4142.2,4142.1,0.3538]
[1760327419037,0.43421,4141.7,4141.6,0.3538]
[1760327419236,3.64201,4141.7,4141.6,0.3538]
[1760327419433,0.43425,4141.2,4141.1,0.00187222]
[1760327419733,7.44576882,4141.2,4140.0,3.6965]
[1760327419937,3.2078,4140.5,4140.1,0.3538]
[1760327420341,3.13611375,4140.4,4140.1,0.3538]
[1760327420530,3.2078,4141.2,4140.3,0.3538]
[1760327420737,3.64206,4141.2,4141.1,0.3538]